[Event "*** SCC Grand Prix: Titled Tuesday Blitz"]
[Site "Chess.com"]
[Date "2020.06.23"]
[Round "4"]
[White "penguingm1"]
[Black "Gabrielian_Artur"]
[Result "0-1"]
[WhiteElo "2900"]
[BlackElo "2776"]
[TimeControl "180+1"]
[EndTime "10:40:28 PDT"]
[Termination "Gabrielian_Artur won by checkmate"]

1. d4 {[%clk 0:03:00.9]} 1... Nf6 {[%clk 0:02:59.7]} 2. c4 {[%clk 0:03:00.6]}
2... c5 {[%clk 0:02:59.9]} 3. d5 {[%clk 0:03:00.8]} 3... e6 {[%clk 0:03:00.1]}
4. Nc3 {[%clk 0:03:01.2]} 4... exd5 {[%clk 0:03:00.5]} 5. cxd5 {[%clk
0:03:02.1]} 5... d6 {[%clk 0:03:01.1]} 6. e4 {[%clk 0:03:02.8]} 6... g6 {[%clk
0:03:01.4]} 7. Nge2 {[%clk 0:03:03.4]} 7... h5 {[%clk 0:03:00.7]} 8. Bg5 {[%clk
0:03:00.7]} 8... Nbd7 {[%clk 0:02:46.7]} 9. Qd2 {[%clk 0:02:18.2]} 9... a6
{[%clk 0:02:40.3]} 10. a4 {[%clk 0:02:06.9]} 10... Bg7 {[%clk 0:02:39.8]} 11.
Ng3 {[%clk 0:02:00.7]} 11... h4 {[%clk 0:02:38]} 12. Nge2 {[%clk 0:01:59.6]}
12... Rb8 {[%clk 0:02:33.6]} 13. Nc1 {[%clk 0:01:35]} 13... h3 {[%clk
0:02:21.2]} 14. g3 {[%clk 0:01:32.7]} 14... Ne5 {[%clk 0:02:07.1]} 15. Be2
{[%clk 0:01:19.9]} 15... Bg4 {[%clk 0:01:54.5]} 16. f4 {[%clk 0:00:20.5]} 16...
Nf3+ {[%clk 0:01:39.3]} 17. Bxf3 {[%clk 0:00:20.5]} 17... Bxf3 {[%clk
0:01:39.7]} 18. O-O {[%clk 0:00:20.6]} 18... Bg2 {[%clk 0:01:22]} 19. Re1 {[%clk
0:00:20.6]} 19... c4 {[%clk 0:00:42.9]} 20. a5 {[%clk 0:00:13.8]} 20... Qc7
{[%clk 0:00:37.4]} 21. e5 {[%clk 0:00:07.1]} 21... Qc5+ {[%clk 0:00:30.1]} 22.
Qf2 {[%clk 0:00:05.2]} 22... Qxf2+ {[%clk 0:00:27.1]} 23. Kxf2 {[%clk
0:00:06.1]} 23... Ng4+ {[%clk 0:00:26.5]} 24. Kg1 {[%clk 0:00:05.7]} 24... dxe5
{[%clk 0:00:19.8]} 25. fxe5 {[%clk 0:00:04.9]} 25... Bxe5 {[%clk 0:00:20.1]} 26.
Bf4 {[%clk 0:00:01.8]} 26... f6 {[%clk 0:00:18.5]} 27. N1e2 {[%clk 0:00:02.2]}
27... O-O {[%clk 0:00:17.2]} 28. Rad1 {[%clk 0:00:01.8]} 28... Rbd8 {[%clk
0:00:16.6]} 29. d6 {[%clk 0:00:02.1]} 29... Rfe8 {[%clk 0:00:15.8]} 30. Nd5
{[%clk 0:00:02.2]} 30... Kg7 {[%clk 0:00:15.6]} 31. Bxe5 {[%clk 0:00:01.2]}
31... Nxe5 {[%clk 0:00:14.5]} 32. Nd4 {[%clk 0:00:01.9]} 32... Rxd6 {[%clk
0:00:12.9]} 33. Nf4 {[%clk 0:00:01.6]} 33... Red8 {[%clk 0:00:12.5]} 34. Nfe6+
{[%clk 0:00:01.3]} 34... Kh6 {[%clk 0:00:12]} 35. Nxd8 {[%clk 0:00:01.9]} 35...
Nd3 {[%clk 0:00:07.4]} 36. Re3 {[%clk 0:00:02]} 36... Rxd4 {[%clk 0:00:07]} 37.
Re7 {[%clk 0:00:01.9]} 37... Rxd8 {[%clk 0:00:05.8]} 38. Rd2 {[%clk 0:00:02.5]}
38... Kg5 {[%clk 0:00:05.4]} 39. Rde2 {[%clk 0:00:03]} 39... Rd5 {[%clk
0:00:05]} 40. Rd2 {[%clk 0:00:03.2]} 40... Ne5 {[%clk 0:00:04.1]} 41. Rxd5
{[%clk 0:00:03]} 41... Bxd5 {[%clk 0:00:05]} 42. Rc7 {[%clk 0:00:02.7]} 42...
Bc6 {[%clk 0:00:05]} 43. Kf2 {[%clk 0:00:03]} 43... Ng4+ {[%clk 0:00:04.8]} 44.
Kg1 {[%clk 0:00:03.6]} 44... Ne5 {[%clk 0:00:04.7]} 45. Re7 {[%clk 0:00:03.8]}
45... Nf3+ {[%clk 0:00:04.5]} 46. Kh1 {[%clk 0:00:04.4]} 46... Nd4+ {[%clk
0:00:03.6]} 47. Kg1 {[%clk 0:00:04.7]} 47... Nb5 {[%clk 0:00:03.7]} 48. Re2
{[%clk 0:00:04.8]} 48... c3 {[%clk 0:00:03.5]} 49. bxc3 {[%clk 0:00:04.9]} 49...
Nxc3 {[%clk 0:00:03.8]} 50. Rc2 {[%clk 0:00:05.5]} 50... Nd5 {[%clk 0:00:04.2]}
51. Rb2 {[%clk 0:00:05.3]} 51... f5 {[%clk 0:00:04.7]} 52. Rd2 {[%clk
0:00:05.7]} 52... Kf6 {[%clk 0:00:05.2]} 53. Kf2 {[%clk 0:00:06.1]} 53... g5
{[%clk 0:00:05.7]} 54. Rd4 {[%clk 0:00:06.1]} 54... f4 {[%clk 0:00:06.1]} 55.
gxf4 {[%clk 0:00:06.2]} 55... gxf4 {[%clk 0:00:06.6]} 56. Rd3 {[%clk 0:00:06.4]}
56... Ne3 {[%clk 0:00:07]} 57. Rd6+ {[%clk 0:00:06.6]} 57... Ke5 {[%clk
0:00:06.8]} 58. Rh6 {[%clk 0:00:07.1]} 58... Ng4+ {[%clk 0:00:07.1]} 59. Kg1
{[%clk 0:00:07.6]} 59... Nxh6 {[%clk 0:00:08]} 60. Kf2 {[%clk 0:00:08.5]} 60...
Ke4 {[%clk 0:00:08.2]} 61. Kg1 {[%clk 0:00:09.4]} 61... Ke3 {[%clk 0:00:08.4]}
62. Kf1 {[%clk 0:00:09.8]} 62... f3 {[%clk 0:00:08.9]} 63. Kg1 {[%clk
0:00:10.7]} 63... f2+ {[%clk 0:00:09.4]} 64. Kf1 {[%clk 0:00:11.6]} 64... Bb5#
{[%clk 0:00:09.8]} 0-1

[Event "*** SCC Grand Prix: Titled Tuesday Blitz"]
[Site "Chess.com"]
[Date "2020.06.23"]
[Round "4"]
[White "AwareIdea"]
[Black "Lucas_Tomiello"]
[Result "0-1"]
[WhiteElo "2506"]
[BlackElo "2333"]
[TimeControl "180+1"]
[EndTime "10:40:29 PDT"]
[Termination "Lucas_Tomiello won by resignation"]

1. d4 {[%clk 0:03:00.9]} 1... Nf6 {[%clk 0:03:00.2]} 2. Bf4 {[%clk 0:02:59]}
2... g6 {[%clk 0:02:56.8]} 3. Nf3 {[%clk 0:02:56]} 3... Bg7 {[%clk 0:02:57]} 4.
e3 {[%clk 0:02:56]} 4... O-O {[%clk 0:02:57.2]} 5. Be2 {[%clk 0:02:56]} 5... d6
{[%clk 0:02:57.7]} 6. O-O {[%clk 0:02:55.6]} 6... Nh5 {[%clk 0:02:53.3]} 7. Bg5
{[%clk 0:02:55.1]} 7... h6 {[%clk 0:02:53.5]} 8. Bh4 {[%clk 0:02:55.1]} 8... g5
{[%clk 0:02:53.5]} 9. Nfd2 {[%clk 0:02:54.6]} 9... gxh4 {[%clk 0:02:52.9]} 10.
Bxh5 {[%clk 0:02:54.3]} 10... h3 {[%clk 0:02:46.1]} 11. Bg4 {[%clk 0:02:36.1]}
11... hxg2 {[%clk 0:02:41.1]} 12. Kxg2 {[%clk 0:02:35.9]} 12... f5 {[%clk
0:02:38.6]} 13. Bh3 {[%clk 0:02:35]} 13... f4 {[%clk 0:02:35.8]} 14. Qh5 {[%clk
0:02:19.3]} 14... Nd7 {[%clk 0:02:12.2]} 15. Ne4 {[%clk 0:01:41.3]} 15... Nf6
{[%clk 0:01:51.7]} 16. Nxf6+ {[%clk 0:01:40.6]} 16... Rxf6 {[%clk 0:01:50.5]}
17. Nd2 {[%clk 0:01:34.3]} 17... d5 {[%clk 0:00:56]} 18. Nf3 {[%clk 0:01:18.6]}
18... c5 {[%clk 0:00:51.7]} 19. c3 {[%clk 0:01:15]} 19... Bxh3+ {[%clk
0:00:50.9]} 20. Kxh3 {[%clk 0:01:07.1]} 20... Qd7+ {[%clk 0:00:46.5]} 21. Kg2
{[%clk 0:00:48.4]} 21... Qf5 {[%clk 0:00:44.2]} 22. Qxf5 {[%clk 0:00:42.9]}
22... Rxf5 {[%clk 0:00:45.1]} 23. Rae1 {[%clk 0:00:30.9]} 23... Re8 {[%clk
0:00:25.4]} 24. e4 {[%clk 0:00:30.4]} 24... dxe4 {[%clk 0:00:25]} 25. Rxe4
{[%clk 0:00:31.3]} 25... cxd4 {[%clk 0:00:25.5]} 26. cxd4 {[%clk 0:00:30.4]}
26... Ra5 {[%clk 0:00:20.2]} 27. a3 {[%clk 0:00:30]} 27... Rc8 {[%clk
0:00:17.6]} 28. Rxe7 {[%clk 0:00:28.8]} 28... Rb5 {[%clk 0:00:16.7]} 29. Rg1
{[%clk 0:00:26.2]} 29... Rf8 {[%clk 0:00:12.8]} 30. Kh3 {[%clk 0:00:21.6]} 30...
Rf7 {[%clk 0:00:13.3]} 31. Re8+ {[%clk 0:00:19.7]} 31... Kh7 {[%clk 0:00:13.3]}
32. Ne5 {[%clk 0:00:18.3]} 32... Bxe5 {[%clk 0:00:12.4]} 33. dxe5 {[%clk
0:00:17]} 33... Rb3+ {[%clk 0:00:12.8]} 34. Kh4 {[%clk 0:00:16.9]} 34... Rxb2
{[%clk 0:00:12.8]} 35. Rgg8 {[%clk 0:00:16.9]} 35... Rxf2 {[%clk 0:00:11.7]} 36.
Rh8+ {[%clk 0:00:16.1]} 36... Kg6 {[%clk 0:00:11.8]} 37. Reg8+ {[%clk 0:00:17]}
37... Kf5 {[%clk 0:00:12]} 38. h3 {[%clk 0:00:14]} 38... Kxe5 {[%clk 0:00:10.9]}
39. Rxh6 {[%clk 0:00:14.2]} 39... f3 {[%clk 0:00:10.4]} 40. Re8+ {[%clk
0:00:12.6]} 40... Kd5 {[%clk 0:00:09.9]} 41. Rh5+ {[%clk 0:00:11.9]} 41... Kc4
{[%clk 0:00:10.4]} 42. Re3 {[%clk 0:00:11.1]} 42... Rg2 {[%clk 0:00:10.2]} 43.
Rhe5 {[%clk 0:00:05.5]} 43... f2 {[%clk 0:00:09.9]} 44. R5e4+ {[%clk 0:00:05.9]}
44... Kd5 {[%clk 0:00:10.1]} 45. Re5+ {[%clk 0:00:05.8]} 45... Kd6 {[%clk
0:00:10.6]} 46. Re6+ {[%clk 0:00:06.1]} 46... Kd7 {[%clk 0:00:11.2]} 47. R6e4
{[%clk 0:00:04.8]} 47... f1=Q {[%clk 0:00:10.4]} 48. Rd4+ {[%clk 0:00:05.7]}
48... Kc6 {[%clk 0:00:11.1]} 49. Rc3+ {[%clk 0:00:05.8]} 49... Kb6 {[%clk
0:00:07.7]} 50. Rb4+ {[%clk 0:00:05.9]} 50... Ka5 {[%clk 0:00:06.2]} 51. Rc5+
{[%clk 0:00:05.6]} 51... Ka6 {[%clk 0:00:06]} 52. Rg5 {[%clk 0:00:02.6]} 52...
Rxg5 {[%clk 0:00:06.1]} 53. Kxg5 {[%clk 0:00:02.7]} 53... Qg1+ {[%clk
0:00:05.7]} 0-1

[Event "*** SCC Grand Prix: Titled Tuesday Blitz"]
[Site "Chess.com"]
[Date "2020.06.23"]
[Round "4"]
[White "cukin84"]
[Black "Pintacara"]
[Result "1-0"]
[WhiteElo "2170"]
[BlackElo "2320"]
[TimeControl "180+1"]
[EndTime "10:40:29 PDT"]
[Termination "cukin84 won on time"]

1. e4 {[%clk 0:03:00.9]} 1... g6 {[%clk 0:02:55.4]} 2. d4 {[%clk 0:03:00.4]}
2... Bg7 {[%clk 0:02:54.6]} 3. Nc3 {[%clk 0:02:59.3]} 3... c5 {[%clk 0:02:51.9]}
4. d5 {[%clk 0:02:56.5]} 4... d6 {[%clk 0:02:48.4]} 5. Be3 {[%clk 0:02:55.3]}
5... a6 {[%clk 0:02:40.6]} 6. Nge2 {[%clk 0:02:53.1]} 6... b5 {[%clk 0:02:39.2]}
7. f3 {[%clk 0:02:49]} 7... b4 {[%clk 0:02:34.5]} 8. Na4 {[%clk 0:02:48.5]} 8...
Qa5 {[%clk 0:02:33.9]} 9. b3 {[%clk 0:02:47.7]} 9... Bd7 {[%clk 0:02:18.4]} 10.
g4 {[%clk 0:02:30.3]} 10... Bxa4 {[%clk 0:02:17.8]} 11. bxa4 {[%clk 0:02:29.7]}
11... Nd7 {[%clk 0:02:12.7]} 12. Bg2 {[%clk 0:02:27.6]} 12... Nb6 {[%clk
0:02:10.4]} 13. O-O {[%clk 0:02:26.3]} 13... Nxa4 {[%clk 0:02:09]} 14. f4 {[%clk
0:02:15.5]} 14... Nf6 {[%clk 0:01:45.2]} 15. g5 {[%clk 0:02:11]} 15... Nd7
{[%clk 0:01:33.4]} 16. Bh3 {[%clk 0:02:10.1]} 16... Ndb6 {[%clk 0:01:32.7]} 17.
e5 {[%clk 0:02:06.4]} 17... O-O {[%clk 0:01:28.3]} 18. e6 {[%clk 0:01:52.1]}
18... f5 {[%clk 0:01:16.5]} 19. gxf6 {[%clk 0:01:51]} 19... Bxf6 {[%clk
0:01:15.7]} 20. Kh1 {[%clk 0:01:33.5]} 20... c4 {[%clk 0:00:51]} 21. f5 {[%clk
0:01:28.2]} 21... Qxd5+ {[%clk 0:00:49.3]} 22. Bg2 {[%clk 0:01:21]} 22... Qxd1
{[%clk 0:00:46.9]} 23. Raxd1 {[%clk 0:01:21.1]} 23... Rab8 {[%clk 0:00:41.5]}
24. fxg6 {[%clk 0:01:20.5]} 24... hxg6 {[%clk 0:00:41.6]} 25. Be4 {[%clk
0:01:19.6]} 25... Kg7 {[%clk 0:00:40.1]} 26. Rg1 {[%clk 0:01:18.9]} 26... Rh8
{[%clk 0:00:26.2]} 27. Rxg6+ {[%clk 0:01:13.2]} 27... Kf8 {[%clk 0:00:25.5]} 28.
Bf4 {[%clk 0:01:06.3]} 28... Nc8 {[%clk 0:00:12.7]} 29. Bc6 {[%clk 0:01:07.2]}
29... Rb6 {[%clk 0:00:09.6]} 30. Bxa4 {[%clk 0:01:04.9]} 30... d5 {[%clk
0:00:07.8]} 31. Bh6+ {[%clk 0:01:03]} 31... Rxh6 {[%clk 0:00:07.1]} 32. Rxh6
{[%clk 0:01:03.3]} 32... Rxe6 {[%clk 0:00:08]} 33. Nf4 {[%clk 0:01:01.7]} 33...
Re4 {[%clk 0:00:05.2]} 34. Ng6+ {[%clk 0:00:58.8]} 34... Kg7 {[%clk 0:00:04.6]}
35. Rh8 {[%clk 0:00:46.9]} 35... Nb6 {[%clk 0:00:04.8]} 36. Rg1 {[%clk
0:00:43.7]} 36... Nxa4 {[%clk 0:00:04]} 37. Ra8 {[%clk 0:00:42.9]} 37... Kf7
{[%clk 0:00:03.3]} 38. Rf8+ {[%clk 0:00:40.3]} 38... Ke6 {[%clk 0:00:02.9]} 39.
Ra8 {[%clk 0:00:39.7]} 39... Nc5 {[%clk 0:00:02.9]} 40. Nf8+ {[%clk 0:00:38.1]}
40... Kd6 {[%clk 0:00:01.6]} 41. Rd8+ {[%clk 0:00:37.9]} 41... Ke5 {[%clk
0:00:01.6]} 42. Ng6+ {[%clk 0:00:35.8]} 42... Kd4 {[%clk 0:00:02.5]} 43. Rd1+
{[%clk 0:00:31.6]} 43... Kc3 {[%clk 0:00:03.4]} 44. R8xd5 {[%clk 0:00:30.6]}
44... Ne6 {[%clk 0:00:04.3]} 45. Rd7 {[%clk 0:00:23.8]} 45... Nd4 {[%clk
0:00:05.2]} 46. Nf8 {[%clk 0:00:21.1]} 46... Nxc2 {[%clk 0:00:05.2]} 47. Rc7
{[%clk 0:00:18.7]} 47... a5 {[%clk 0:00:03.9]} 48. Nd7 {[%clk 0:00:18]} 48... a4
{[%clk 0:00:03.7]} 49. Nb6 {[%clk 0:00:17.5]} 49... b3 {[%clk 0:00:03.1]} 50.
axb3 {[%clk 0:00:15.8]} 50... axb3 {[%clk 0:00:02.7]} 51. Na4+ {[%clk
0:00:14.5]} 51... Kb4 {[%clk 0:00:02.4]} 52. Nb6 {[%clk 0:00:14.7]} 52... c3
{[%clk 0:00:02.6]} 53. Nd5+ {[%clk 0:00:14.2]} 53... Kb5 {[%clk 0:00:02.9]} 54.
Rb1 {[%clk 0:00:11.5]} 54... Rh4 {[%clk 0:00:02.1]} 55. Rxb3+ {[%clk 0:00:10.7]}
55... Ka4 {[%clk 0:00:01.3]} 56. Rb2 {[%clk 0:00:08.6]} 1-0

[Event "*** SCC Grand Prix: Titled Tuesday Blitz"]
[Site "Chess.com"]
[Date "2020.06.23"]
[Round "4"]
[White "Biranidun"]
[Black "ShimanovAlex"]
[Result "0-1"]
[WhiteElo "2734"]
[BlackElo "2878"]
[TimeControl "180+1"]
[EndTime "10:40:37 PDT"]
[Termination "ShimanovAlex won by resignation"]

1. e4 {[%clk 0:03:00.9]} 1... c6 {[%clk 0:02:58.6]} 2. d4 {[%clk 0:03:00.8]}
2... d5 {[%clk 0:02:58.9]} 3. e5 {[%clk 0:03:01.4]} 3... Bf5 {[%clk 0:02:59]} 4.
Nf3 {[%clk 0:03:01.9]} 4... e6 {[%clk 0:02:59.3]} 5. Be2 {[%clk 0:03:02.5]} 5...
Ne7 {[%clk 0:02:59.4]} 6. O-O {[%clk 0:03:02.5]} 6... Bg6 {[%clk 0:02:57.7]} 7.
Nbd2 {[%clk 0:03:00.8]} 7... c5 {[%clk 0:02:56.2]} 8. dxc5 {[%clk 0:02:58.2]}
8... Nec6 {[%clk 0:02:56.1]} 9. Nb3 {[%clk 0:02:57.7]} 9... Nd7 {[%clk
0:02:56.2]} 10. c4 {[%clk 0:02:58.1]} 10... dxc4 {[%clk 0:02:54.1]} 11. Bxc4
{[%clk 0:02:59]} 11... Nxc5 {[%clk 0:02:54.5]} 12. Be3 {[%clk 0:02:44.8]} 12...
Nd7 {[%clk 0:02:41.3]} 13. Nbd4 {[%clk 0:02:17.1]} 13... Nxd4 {[%clk 0:02:28.5]}
14. Nxd4 {[%clk 0:02:06.3]} 14... Be7 {[%clk 0:02:14]} 15. Bxe6 {[%clk
0:01:58.2]} 15... O-O {[%clk 0:01:28.9]} 16. Bb3 {[%clk 0:01:34.8]} 16... Nc5
{[%clk 0:01:04.2]} 17. Bc4 {[%clk 0:01:34.5]} 17... Rc8 {[%clk 0:01:03.2]} 18.
Rc1 {[%clk 0:01:34.2]} 18... a6 {[%clk 0:00:57.5]} 19. b4 {[%clk 0:01:24.5]}
19... Nd7 {[%clk 0:00:50.2]} 20. f4 {[%clk 0:01:21.7]} 20... Nb6 {[%clk
0:00:45.2]} 21. Bb3 {[%clk 0:01:03.3]} 21... Rxc1 {[%clk 0:00:44.8]} 22. Bxc1
{[%clk 0:01:03.2]} 22... Bxb4 {[%clk 0:00:38.2]} 23. f5 {[%clk 0:00:59.4]} 23...
Bh5 {[%clk 0:00:38.1]} 24. g4 {[%clk 0:00:38.1]} 24... Bc5 {[%clk 0:00:35.7]}
25. Be3 {[%clk 0:00:38.3]} 25... Nd5 {[%clk 0:00:34.7]} 26. Bxd5 {[%clk
0:00:36]} 26... Qxd5 {[%clk 0:00:35]} 27. gxh5 {[%clk 0:00:36.4]} 27... Qxe5
{[%clk 0:00:35.5]} 28. Bf2 {[%clk 0:00:23.7]} 28... Rd8 {[%clk 0:00:35.3]} 29.
Re1 {[%clk 0:00:19]} 29... Qf4 {[%clk 0:00:32.2]} 30. Qe2 {[%clk 0:00:11.1]}
30... h6 {[%clk 0:00:30]} 31. Qe4 {[%clk 0:00:06.2]} 31... Qg5+ {[%clk
0:00:26.4]} 32. Kf1 {[%clk 0:00:06.2]} 32... Qxh5 {[%clk 0:00:25.2]} 33. Nf3
{[%clk 0:00:06.2]} 33... Bf8 {[%clk 0:00:20.6]} 34. Kg2 {[%clk 0:00:05.9]} 34...
Rc8 {[%clk 0:00:19.8]} 35. Re2 {[%clk 0:00:06.1]} 35... Rd8 {[%clk 0:00:19.6]}
36. Bg3 {[%clk 0:00:06.2]} 36... b5 {[%clk 0:00:19.4]} 37. h3 {[%clk 0:00:06.5]}
37... b4 {[%clk 0:00:19.2]} 38. Qg4 {[%clk 0:00:06.7]} 38... Qxg4 {[%clk
0:00:19.4]} 39. hxg4 {[%clk 0:00:07.6]} 39... a5 {[%clk 0:00:19.9]} 40. Re5
{[%clk 0:00:07.4]} 40... a4 {[%clk 0:00:19.8]} 41. Ra5 {[%clk 0:00:06.5]} 41...
a3 {[%clk 0:00:20.3]} 42. Be5 {[%clk 0:00:05.8]} 42... Rc8 {[%clk 0:00:20.4]}
43. Nd4 {[%clk 0:00:04.3]} 43... f6 {[%clk 0:00:20.4]} 44. Bf4 {[%clk
0:00:03.9]} 44... Rc4 {[%clk 0:00:20.7]} 45. Ne6 {[%clk 0:00:02.2]} 45... Be7
{[%clk 0:00:19.8]} 46. Ra8+ {[%clk 0:00:01.8]} 46... Kf7 {[%clk 0:00:20.2]} 47.
Ra7 {[%clk 0:00:01.3]} 47... Ke8 {[%clk 0:00:20.2]} 48. Kf3 {[%clk 0:00:01.1]}
48... Rc3+ {[%clk 0:00:20.1]} 49. Ke4 {[%clk 0:00:01.2]} 49... Rc2 {[%clk
0:00:20.3]} 50. Nxg7+ {[%clk 0:00:01.7]} 50... Kf7 {[%clk 0:00:20.5]} 51. Ne6
{[%clk 0:00:02.6]} 51... Re2+ {[%clk 0:00:20.6]} 52. Kd3 {[%clk 0:00:02.4]}
52... Rxa2 {[%clk 0:00:20.4]} 53. Kc4 {[%clk 0:00:02.7]} 53... Rc2+ {[%clk
0:00:20.2]} 54. Kb3 {[%clk 0:00:03.1]} 54... Rc3+ {[%clk 0:00:20.6]} 55. Ka2
{[%clk 0:00:03.8]} 55... Rd3 {[%clk 0:00:21.1]} 56. Ra6 {[%clk 0:00:03.4]} 56...
b3+ {[%clk 0:00:21.5]} 57. Kb1 {[%clk 0:00:03.3]} 57... Rd1+ {[%clk 0:00:21.8]}
58. Bc1 {[%clk 0:00:03.8]} 58... b2 {[%clk 0:00:22.5]} 59. Rc6 {[%clk
0:00:03.9]} 59... bxc1=Q+ {[%clk 0:00:23]} 60. Rxc1 {[%clk 0:00:04.1]} 60... a2+
{[%clk 0:00:23.6]} 61. Ka1 {[%clk 0:00:04.6]} 61... Rxc1+ {[%clk 0:00:23.8]} 62.
Kxa2 {[%clk 0:00:05.1]} 62... Rg1 {[%clk 0:00:23.3]} 0-1

[Event "*** SCC Grand Prix: Titled Tuesday Blitz"]
[Site "Chess.com"]
[Date "2020.06.23"]
[Round "4"]
[White "MasterKroket"]
[Black "AGW2016"]
[Result "0-1"]
[WhiteElo "2405"]
[BlackElo "2245"]
[TimeControl "180+1"]
[EndTime "10:40:38 PDT"]
[Termination "AGW2016 won by resignation"]

1. d4 {[%clk 0:03:00.9]} 1... Nf6 {[%clk 0:03:00]} 2. c4 {[%clk 0:03:01.6]} 2...
g6 {[%clk 0:02:59.7]} 3. Nc3 {[%clk 0:03:01.2]} 3... Bg7 {[%clk 0:03:00.2]} 4.
e4 {[%clk 0:03:01.6]} 4... d6 {[%clk 0:02:59.9]} 5. Nf3 {[%clk 0:03:02.1]} 5...
O-O {[%clk 0:02:59.5]} 6. Be2 {[%clk 0:03:02.8]} 6... e5 {[%clk 0:02:57]} 7. d5
{[%clk 0:03:03.2]} 7... a5 {[%clk 0:02:55]} 8. O-O {[%clk 0:03:03.7]} 8... Na6
{[%clk 0:02:54.1]} 9. Bg5 {[%clk 0:03:04.3]} 9... h6 {[%clk 0:02:53.7]} 10. Bh4
{[%clk 0:03:04.1]} 10... Qe8 {[%clk 0:02:54.1]} 11. Nd2 {[%clk 0:03:03.7]} 11...
Nh7 {[%clk 0:02:51.8]} 12. b3 {[%clk 0:03:02.3]} 12... h5 {[%clk 0:02:49.8]} 13.
f3 {[%clk 0:02:58.9]} 13... Bh6 {[%clk 0:02:50.3]} 14. a3 {[%clk 0:02:56.8]}
14... Bd7 {[%clk 0:02:50.8]} 15. Rb1 {[%clk 0:02:52.1]} 15... Be3+ {[%clk
0:02:50.1]} 16. Kh1 {[%clk 0:02:47.9]} 16... Bc5 {[%clk 0:02:49]} 17. Qc1 {[%clk
0:02:46.8]} 17... Kg7 {[%clk 0:02:27.3]} 18. Na2 {[%clk 0:02:46.7]} 18... f5
{[%clk 0:02:14.1]} 19. Bd3 {[%clk 0:02:42.5]} 19... f4 {[%clk 0:02:12.9]} 20. b4
{[%clk 0:02:41.6]} 20... axb4 {[%clk 0:02:12.1]} 21. axb4 {[%clk 0:02:41.2]}
21... Be3 {[%clk 0:02:13]} 22. Nc3 {[%clk 0:02:32.1]} 22... g5 {[%clk
0:02:11.8]} 23. Bf2 {[%clk 0:02:32.1]} 23... Bxf2 {[%clk 0:02:09]} 24. Rxf2
{[%clk 0:02:33]} 24... g4 {[%clk 0:02:09.6]} 25. Bf1 {[%clk 0:02:27.5]} 25...
Qe7 {[%clk 0:02:08.5]} 26. Re2 {[%clk 0:02:14.4]} 26... Qh4 {[%clk 0:02:06.9]}
27. Nb5 {[%clk 0:01:56.8]} 27... Ng5 {[%clk 0:02:03.7]} 28. Kg1 {[%clk 0:01:37]}
28... Rg8 {[%clk 0:01:49]} 29. g3 {[%clk 0:01:06.6]} 29... fxg3 {[%clk
0:01:48.2]} 30. hxg3 {[%clk 0:01:06.1]} 30... Qxg3+ {[%clk 0:01:47]} 31. Rg2
{[%clk 0:01:06.8]} 31... Nxf3+ {[%clk 0:01:41]} 32. Nxf3 {[%clk 0:01:01.6]}
32... Qxf3 {[%clk 0:01:41.9]} 33. Qg5+ {[%clk 0:00:59.7]} 33... Kf7 {[%clk
0:01:21.5]} 34. Qxh5+ {[%clk 0:00:45.9]} 34... Ke7 {[%clk 0:01:20.2]} 35. Qh7+
{[%clk 0:00:31.2]} 35... Qf7 {[%clk 0:01:19.6]} 36. Qh4+ {[%clk 0:00:30]} 36...
Qf6 {[%clk 0:01:19.4]} 37. Qxf6+ {[%clk 0:00:29.5]} 37... Kxf6 {[%clk
0:01:19.4]} 38. Be2 {[%clk 0:00:23]} 38... Kg5 {[%clk 0:01:05.8]} 39. Rb3 {[%clk
0:00:19.8]} 39... Raf8 {[%clk 0:01:02.4]} 40. c5 {[%clk 0:00:17.1]} 40... dxc5
{[%clk 0:01:00.2]} 41. bxc5 {[%clk 0:00:18]} 41... Nxc5 {[%clk 0:00:59.8]} 42.
Re3 {[%clk 0:00:18.7]} 42... Bxb5 {[%clk 0:00:56]} 43. Bxb5 {[%clk 0:00:18.5]}
43... Rf4 {[%clk 0:00:55.4]} 44. Bd3 {[%clk 0:00:13.8]} 44... Nxd3 {[%clk
0:00:53.7]} 45. Rxd3 {[%clk 0:00:14.7]} 45... Rxe4 {[%clk 0:00:54.2]} 46. Rc3
{[%clk 0:00:15.6]} 46... Rg7 {[%clk 0:00:54]} 47. Rb2 {[%clk 0:00:15.4]} 47...
b6 {[%clk 0:00:53.7]} 48. Rbc2 {[%clk 0:00:15]} 48... Rd4 {[%clk 0:00:52]} 49.
Rxc7 {[%clk 0:00:15.1]} 49... Rxc7 {[%clk 0:00:52]} 50. Rxc7 {[%clk 0:00:16]}
50... Rxd5 {[%clk 0:00:52.7]} 51. Rc6 {[%clk 0:00:15.9]} 51... b5 {[%clk
0:00:51.7]} 52. Kf2 {[%clk 0:00:16.8]} 52... Kf4 {[%clk 0:00:51.2]} 53. Rf6+
{[%clk 0:00:16.8]} 53... Ke4 {[%clk 0:00:51.9]} 54. Rg6 {[%clk 0:00:17.4]} 54...
Kf5 {[%clk 0:00:51.6]} 55. Rg8 {[%clk 0:00:18.1]} 55... e4 {[%clk 0:00:50.8]}
56. Ke3 {[%clk 0:00:18.6]} 56... Rd3+ {[%clk 0:00:50.7]} 57. Ke2 {[%clk
0:00:19.5]} 57... Rb3 {[%clk 0:00:49.4]} 58. Rf8+ {[%clk 0:00:19.1]} 58... Kg5
{[%clk 0:00:49.8]} 59. Rg8+ {[%clk 0:00:19.5]} 59... Kf4 {[%clk 0:00:50.4]} 60.
Rf8+ {[%clk 0:00:19.7]} 60... Kg3 {[%clk 0:00:51.1]} 61. Re8 {[%clk 0:00:20.4]}
61... e3 {[%clk 0:00:50.8]} 62. Rg8 {[%clk 0:00:21.1]} 62... b4 {[%clk
0:00:46.9]} 63. Rg7 {[%clk 0:00:20.3]} 63... Kh3 {[%clk 0:00:47.2]} 64. Rh7+
{[%clk 0:00:20.4]} 64... Kg2 {[%clk 0:00:47.9]} 65. Rg7 {[%clk 0:00:20.8]} 65...
g3 {[%clk 0:00:48.5]} 66. Rg8 {[%clk 0:00:20.5]} 66... Rc3 {[%clk 0:00:48.4]}
67. Rg7 {[%clk 0:00:19.9]} 67... b3 {[%clk 0:00:48.9]} 68. Rg8 {[%clk
0:00:20.1]} 68... Kh2 {[%clk 0:00:46.8]} 69. Rh8+ {[%clk 0:00:20]} 69... Kg1
{[%clk 0:00:47.2]} 70. Rg8 {[%clk 0:00:20.4]} 70... g2 {[%clk 0:00:47.7]} 71.
Kf3 {[%clk 0:00:20.9]} 71... e2+ {[%clk 0:00:45.2]} 72. Kxe2 {[%clk 0:00:21.4]}
72... b2 {[%clk 0:00:45.9]} 73. Rb8 {[%clk 0:00:20.5]} 73... Rc7 {[%clk
0:00:44.9]} 74. Rxb2 {[%clk 0:00:20.5]} 74... Re7+ {[%clk 0:00:45.5]} 75. Kf3
{[%clk 0:00:21.2]} 75... Rf7+ {[%clk 0:00:41.9]} 76. Kg3 {[%clk 0:00:20.8]}
76... Rg7+ {[%clk 0:00:42.6]} 77. Kh3 {[%clk 0:00:21.1]} 77... Rh7+ {[%clk
0:00:42.3]} 78. Kg3 {[%clk 0:00:21.4]} 78... Rg7+ {[%clk 0:00:42.6]} 79. Kh3
{[%clk 0:00:21.8]} 79... Kf1 {[%clk 0:00:41.4]} 80. Rb1+ {[%clk 0:00:21.8]}
80... Kf2 {[%clk 0:00:41.7]} 81. Rb2+ {[%clk 0:00:22.1]} 81... Kf3 {[%clk
0:00:41.5]} 82. Rc2 {[%clk 0:00:17.4]} 82... g1=Q {[%clk 0:00:35.6]} 83. Rf2+
{[%clk 0:00:18.3]} 83... Kxf2 {[%clk 0:00:33.9]} 0-1